Cogmind - Beta 15 @@@ ROGUE MODE // 2025.05.09 @ 20:39:57 Player: FloorSandwich Result: Core destroyed Performance ------------- Evolutions (0) 0 Regions Visited (2) 400 Robots Destroyed (10) 50 Value Destroyed (279) 279 Prototype IDs (1) 20 Alien Tech Used (0) 0 Bonus (0) 0 TOTAL SCORE: 749 Bonus ------- None Cogmind --------- Core Integrity 0/250 Matter 220/300 Energy 100/100 System Corruption 0% Temperature Cool (0) Movement Walking (120) Location -10/Mines Parts ------- > --- POWER (1) -------- (None) > --- PROPULSION (2) --- Aluminum Leg > --- UTILITY (2) ------ Bomb Drone Bay (11/16) > --- WEAPON (2) ------- (None) > --- INVENTORY (5) ---- Ion Engine Huge Storage Unit Peak State ------------ > --- POWER ------------ (None) > --- PROPULSION ------- Aluminum Leg > --- UTILITY ---------- Bomb Drone Bay > --- WEAPON ----------- (None) > --- INVENTORY -------- Ion Engine Huge Storage Unit [Rating: 15] Favorites ----------- Power Ion Engine Engine Ion Engine Propulsion Aluminum Leg Treads Light Treads Leg Aluminum Leg Utility Small Storage Unit Device Bomb Drone Bay Storage Small Storage Unit Protection Light Armor Plating Weapon Assault Rifle Energy Gun Medium Laser Ballistic Gun Assault Rifle Build | -11 -10 -10 ------- Run | Yrd Mat Min Slots Evolved . | . . . Power . | . . . Propulsion . | . . . Utility . | . . . Weapon . | . . . Parts Attached 11 | 6 4 1 Power 1 | 1 . . Engine 1 | 1 . . Core . | . . . Reactor . | . . . Propulsion 3 | 2 1 . Treads 2 | 2 . . Leg 1 | . 1 . Wheel . | . . . Hover . | . . . Flight . | . . . Utility 4 | 1 2 1 Device 1 | . . 1 Storage 2 | 1 1 . Processor . | . . . Hackware . | . . . Protection 1 | . 1 . Artifact . | . . . Weapon 3 | 2 1 . Energy Gun 2 | 2 . . Energy Cannon . | . . . Ballistic Gun 1 | . 1 . Ballistic Cannon . | . . . Launcher . | . . . Special Weapon . | . . . Impact Weapon . | . . . Slashing Weapon . | . . . Piercing Weapon . | . . . Special Melee Weapon . | . . . Unidentified Prototypes 1 | . . 1 Parts Lost 4 | . 4 . Power 1 | . 1 . Propulsion . | . . . Utility 1 | . 1 . Weapon 2 | . 2 . Highest Loss Streak 3 | . 3 . To Critical Strikes . | . . . Average Backups 1 | 1 . 1 Power . | . . 1 Propulsion . | . . . Utility . | . . . Weapon . | . . . Tool/Special . | . . . Unused Backups 1 | . . 1 Power 1 | . . 1 Propulsion . | . . . Utility . | . . . Weapon . | . . . Tool/Special . | . . . Average Slot Usage (%) 53 | . 65 28 Engine 7 | . 11 . Treads 5 | . 7 . Leg 10 | . 9 14 Storage 13 | . 14 11 Protection 5 | . 7 . Energy Gun 2 | . 3 . Ballistic Gun 7 | . 11 . Peak Build Rating 15 | 6 6 15 Average Rating 4 | 4 4 4 On Entrance 2 | . 6 2 Naked Turns . | . . . Heaviest Build 90 | 14 90 80 Greatest Support 40 | 40 40 10 Greatest Overweight (x) 8 | . 8 7 Average Overweight (x) 1 | . 1 3 Largest Inventory Capacity 25 | 8 25 25 Average Capacity 14 | 6 12 21 Most Carried 3 | 3 2 3 Average Carried 1 | 1 . 1 Final Capacity 25 | 8 25 5 Final Carried 2 | 1 1 2 Class Distribution -------------------- 100% | Mutant Dominant Class ---------------- Mutant | -10/Materials Mutant | -10/Mines Resources | -11 -10 -10 ----------- Run | Yrd Mat Min Matter Collected 411 | 200 211 . Remotely . | . . . Salvage Created 403 | . 403 . Parts 12 | . 12 . Haulers Intercepted . | . . . Recyclers Shooed . | . . . Parts Field Recycled . | . . . Retrieved Matter . | . . . Parts Self-Destructed . | . . . Prevented . | . . . Kills | -11 -10 -10 ------- Run | Yrd Mat Min Combat Hostiles Destroyed 9 | . 9 . Guns 9 | . 9 . Classes Destroyed 3 | . 3 . Recycler 1 | . 1 . Swarmer 3 | . 3 . Grunt 6 | . 6 . Best Kill Streak 4 | . 4 . Combat Bots Only 4 | . 4 . Max Kills in Single Turn 1 | . 1 . Gunslinging . | . . . Exploded . | . . . Melee . | . . . Uniques/NPCs Destroyed . | . . . Combat | -11 -10 -10 -------- Run | Yrd Mat Min Hostile Shots Fired 118 | . 116 2 Missed 30 | . 29 1 Hits 88 | . 87 1 Projectile 88 | . 87 1 Critical Strikes 1 | . 1 . Damage Taken 1219 | . 1044 175 Core 264 | . 248 16 Absorbed by Shields . | . . . Regen/Repaired (Parts) 53 | . 53 . Core Remaining (%) 100 | 100 . . Volleys Fired 64 | . 64 . Largest 2 | . 2 . Hottest 100 | . 100 . Shots Fired 78 | . 78 . Gun 78 | . 78 . Cannon . | . . . Launcher . | . . . Special . | . . . Kinetic 48 | . 48 . Thermal 30 | . 30 . Explosive . | . . . Electromagnetic . | . . . Robot Hit Streak 10 | . 10 . Robot Miss Streak 5 | . 5 . Penetration Max . | . . . Secondary Targets . | . . . Shots Hit Robots 50 | . 50 . Core Hits 21 | . 21 . Critical Kills . | . . . Critical Parts Destroyed . | . . . Critical Strikes 1 | . 1 . Burn 1 | . 1 . Melee Attacks . | . . . Impact . | . . . Slashing . | . . . Piercing . | . . . Sneak Attacks . | . . . Combat Hostiles . | . . . Follow-up Attacks . | . . . Damage Inflicted 650 | . 650 . Guns 650 | . 650 . Cannons . | . . . Explosions . | . . . Melee . | . . . Ramming . | . . . Kinetic 384 | . 384 . Thermal 266 | . 266 . Explosive . | . . . Electromagnetic . | . . . Impact . | . . . Slashing . | . . . Piercing . | . . . Highest Corruption . | . . . Average Corruption . | . . . Corruption Purged . | . . . Corruption Blocked . | . . . Overload Shots . | . . . Overflow Damage . | . . . Projectiles . | . . . Explosions . | . . . Melee . | . . . Knockbacks . | . . . Impact . | . . . Kinetic . | . . . Secondary . | . . . Self-Inflicted Damage . | . . . Shots . | . . . Rammed . | . . . Targets Rammed . | . . . Kicked . | . . . Crushed . | . . . Highest Temperature 583 | . 583 . Average Temperature 283 | . 283 . Received Heat Transfer 534 | . 525 9 Effects 15 | . 15 . Shutdowns 3 | . 3 . Energy Bleed 4 | . 4 . Interference 2 | . 2 . Matter Decay 1 | . 1 . Short Circuit 2 | . 2 . Damage (minor) 2 | . 2 . Damage (core) 1 | . 1 . Siege Activations . | . . . Martial Activations . | . . . Shielding Activations . | . . . Robots Disrupted . | . . . Combat Hostiles . | . . . Robots Corrupted . | . . . Combat Hostiles . | . . . Parts Fried . | . . . Impact Corruptions . | . . . Robots Melted . | . . . Combat Hostiles . | . . . Parts Melted 5 | . 5 . Heat Transferred 851 | . 851 . Parts Sabotaged . | . . . Parts Stolen . | . . . Parts Stripped . | . . . Power Chain Reactions . | . . . Alert | -11 -10 -10 ------- Run | Yrd Mat Min Maximum Alert Level . | . . . Low Security (%) 100 | 100 100 100 Level 1 . | . . . Level 2 . | . . . Level 3 . | . . . Level 4 . | . . . Level 5 . | . . . High Security . | . . . Max Security . | . . . Peak Influence 135 | . 135 . Initial . | . . . Average 26 | . 43 . Influence Increases 267 | . 267 . Destroy 0b10 Robot/C 180 | . 180 . Destroy 0b10 Robot/NC 5 | . 5 . Destroy Leader 50 | . 50 . Successful Hack 2 | . 2 . Lose Combat Pursuer 30 | . 30 . Influence Decreases 267 | . 267 . Time Decay 237 | . 237 . Lost Part 30 | . 30 . Squads Dispatched 2 | . 2 . Investigation 1 | . 1 . Extermination . | . . . Reinforcement 1 | . 1 . Assault . | . . . Garrison . | . . . Intercept . | . . . Searches Triggered . | . . . Construction Impeded . | . . . Haulers Reinforced . | . . . Active Scanning Responses . | . . . Cargo Convoy Interrupts . | . . . Stealth | -11 -10 -10 --------- Run | Yrd Mat Min Distress Signals 1 | . 1 . Communications Jammed . | . . . Distress Signals . | . . . Times Spotted 19 | . 18 1 Peak Tracking Total 6 | . 6 1 Tactical Retreats 2 | . 2 . Traps | -11 -10 -10 ------- Run | Yrd Mat Min Traps Triggered 1 | . 1 . Indirectly . | . . . Trap Hack Attempts . | . . . Triggered . | . . . Disarmed . | . . . Reprogrammed . | . . . Reused . | . . . Traps Extracted . | . . . Installed . | . . . Triggered . | . . . Machines | -11 -10 -10 ---------- Run | Yrd Mat Min Machines Disabled . | . . . Max in Single Turn . | . . . Machines Repaired . | . . . Machines Dismantled . | . . . Machines Sabotaged . | . . . Overloaded Fab Kills . | . . . Hacking | -11 -10 -10 --------- Run | Yrd Mat Min Machines Accessed 3 | . 2 1 Terminals 1 | . 1 . Fabricators . | . . . Repair Stations 1 | . 1 . Recycling Units . | . . . Scanalyzers . | . . . Garrison Access . | . . . Total Hacks 8 | . 7 1 Successful 4 | . 3 1 Failed 4 | . 4 . Catastrophic 1 | . 1 . Database Lockouts . | . . . Manual . | . . . Terminals 5 | . 5 . Fabricators . | . . . Repair Stations 2 | . 2 . Recycling Units . | . . . Scanalyzers . | . . . Garrison Access . | . . . Terminal Hacks 2 | . 1 1 Open Door 1 | . . 1 Reinforcement Status 1 | . 1 . Fabricator Hacks . | . . . Repair Station Hacks 2 | . 2 . Scan Component 1 | . 1 . Repair 1 | . 1 . Recycling Unit Hacks . | . . . Scanalyzer . | . . . Garrison Access Hacks . | . . . Unauthorized Hacks . | . . . Terminals . | . . . Fabricators . | . . . Repair Stations . | . . . Recycling Units . | . . . Scanalyzers . | . . . Garrison Access . | . . . Data Cores Recovered . | . . . Used . | . . . Hacking Detections 2 | . 2 . Full Trace Events . | . . . Feedback Events . | . . . Feedback Blocked . | . . . Robot Schematics Acquired . | . . . Robots Built . | . . . Authchips . | . . . Time . | . . . Total Robot Build Rating . | . . . Part Schematics Acquired . | . . . Parts Built . | . . . Authchips . | . . . Time . | . . . Total Part Build Rating . | . . . Parts Repaired 1 | . 1 . Time 26 | . 26 . Parts Recycled . | . . . Recycled Matter . | . . . Retrieved Matter . | . . . Retrieved Components . | . . . Parts Scanalyzed . | . . . Part Schematics Acquired . | . . . Parts Damaged . | . . . Bothacking | -11 -10 -10 ------------ Run | Yrd Mat Min Used RIF Installer . | . . . Robots Hacked . | . . . Non-combat . | . . . Combat . | . . . Robot Hacks Applied . | . . . Relay Couplers Released . | . . . Fabnet Peak Effective % . | . . . Robots Rewired . | . . . Allies Hacked . | . . . Hacks Repelled . | . . . Allies | -11 -10 -10 -------- Run | Yrd Mat Min Total Allies . | . . . Largest Group . | . . . Highest-Rated Group . | . . . Highest-Rated Ally . | . . . Total Orders . | . . . Ally Attacks 4 | . . 4 Total Damage . | . . . Kills . | . . . Allies Corrupted . | . . . Allies Melted . | . . . Intel | -11 -10 -10 ------- Run | Yrd Mat Min Active Infowar (turns) . | . . . Robot Analysis Total . | . . . Derelict Logs Recovered 1 | . . 1 Drone Launches 5 | . . 5 Drone Recoveries . | . . . Exploration | -11 -10 -10 ------------- Run | Yrd Mat Min Turns Passed 1157 | 122 701 334 Spaces Moved 421 | 78 247 96 Core 13 | 13 . . Treads 153 | 65 88 . Legs 255 | . 159 96 Wheels . | . . . Hover . | . . . Flight . | . . . Fastest Speed 50 | 50 120 120 Average Speed 235 | 141 223 344 Slowest Speed 680 | 160 680 610 Overloaded Moves . | . . . Propulsion Burnouts . | . . . Robots Hopped . | . . . Potential Cave-ins . | . . . Cave-ins Triggered . | . . . Exploration Rate (%) 24 | 6 38 28 Regions Visited 2 Branch Regions 1 Pre-discovered Areas 1 | . . 1 Known Exits Taken . | . . . Unknown Exits Taken 2 | 1 1 . Scrap Searched . | . . . Spaces Dug . | . . . Terrain Destroyed . | . . . Melee . | . . . Projectile . | . . . AOE . | . . . Terrain Rammed . | . . . Walls Destroyed . | . . . Machines Disabled . | . . . Actions | -11 -10 -10 --------- Run | Yrd Mat Min Total 513 | 90 324 99 Wait . | . . . Move 419 | 77 246 96 Hop . | . . . Pick Up 13 | 7 5 1 Fast Attach . | . . . Attach 11 | 6 4 1 Detach 1 | . . 1 Swap 1 | . 1 . Drop 4 | . 4 . Fire 64 | . 64 . Melee . | . . . Ram . | . . . Kick . | . . . Crush . | . . . Escape Stasis . | . . . Rewire . | . . . Trap . | . . . Miscellaneous . | . . . Route ------- -11/Scrapyard -10/Materials -10/Mines History --------- Turn | Location | Event 5 | -11/Scrapyard | Discovered new exit (range 15) 123 | -11/Scrapyard | Entered Materials 307 | -10/Materials | Build established: Mutant 397 | -10/Materials | Repaired Ion Engine 608 | -10/Materials | Discovered new exit (range 8) 752 | -10/Materials | Core integrity fell below 50% 797 | -10/Materials | Core integrity fell below 20% 803 | -10/Materials | Lost 3 parts (1p1u1w) 824 | -10/Materials | Entered Mines 898 | -10/Mines | Learned location of Mines (-9) 1039 | -10/Mines | Found the Drone Emporium 1093 | -10/Mines | Found Prototype Device 1094 | -10/Mines | Identified Bomb Drone Bay 1158 | -10/Mines | Core destroyed Last Messages --------------- Bomb Drone detonates. Bomb Drone destroyed. Machine disabled. K-01 Serf destroyed. Y-45 Defender destroyed. Machine disabled. Bomb Drone detonates. Bomb Drone destroyed. K-01 Serf destroyed. Bomb Drone released from Bomb Drone Bay. Bomb Drone sneak attacks. Bomb Drone detonates. Bomb Drone destroyed. Bomb Drone released from Bomb Drone Bay. The unstable cave ceiling collapses. Bomb Drone released from Bomb Drone Bay. The unstable cave ceiling collapses. Bomb Drone sneak attacks. Bomb Drone detonates. Bomb Drone destroyed. Map ----- +----------------------------------------------------+ | ?????????????????????????# #?# " | | ?????????????????????????# ########## #?# " | | ?????????????????????????## # #????????# ### " | | ??????????????????????????##### #????????# | | ??????????????????????????????# #????????# | | ??????????????????????????????# #????????###### | | ??????????????????????????????# ###???????????## | | ??????????????????????######### ##???????????## | | ???????????????? #????????????? | | ??????????????????????######### #????????????? | | ??????????????????????????????# #????????????? | | ?????????????????????????????## #????????????? | | ????????????????????????????## #????????????? | | ???????????????????????????## #????????????? | | ???????????????????????????# #????????????? | | ?????????????????????###???# ###????????????? | | ??????????????######## ##### ##??????????????? | | ??????????????# # #???????????????? | | ?????????????## # #???????????????? | | ?????????????# # ##???????????????? | | ?????????????## = #????????????????? | | ?????????????# ! Y # ##???????????????? | | ?????????????# ] #####???????????? | | ?????????????## ##??????????? | | ?????????????# # % ##?????????? | | ?????????????## n @ ##????????? | | ??????????????## = # ##?????? | | ???????????????# ? | | ?????????? # r ########??? | | ???????? ###?????????? | | ???????? ### ##???????????? | | ???????? ### ##?## ##????????????? | | ??????? ???### #####???#######?????????????? | | ???????? ??????## #????????????????????????????? | | ????????????????####?????????????????????????????? | | ?????????????????????????????????????????????????? | | ?????????????????????????????????????????????????? | | ?????????????????????????????????????????????????? | | ?????????????????????????????????????????????????? | | ?????????????????????????????????????????????????? | | ?????????????????????????????????????????????????? | | ?????????????????????????????????????????????????? | | ?????????????????????????????????????????????????? | | ?????????????????????????????????????????????????? | | ?????????????????????????????????????????????????? | | ?????????????????????????????????????????????????? | | ?????????????????????????????????????????????????? | | ?????????????????????????????????????????????????? | | | | | +----------------------------------------------------+ Best States ------------- Heat Dissipation 25 Energy Generation 10 Energy Capacity 250 Matter Stores 289 Matter Capacity 300 Sight Range 16 Terrain Scan Density 10 Armor Coverage 150 Evasion (%) 55 Recoil Reduction 2 Item Schematics ----------------- None Robot Schematics ------------------ None Fabricated ------------ Nothing Repaired ---------- Ion Engine | 11% | -10/Materials Alien Tech Used ----------------- None Achievements -------------- None Challenges ------------ None Game ------ Seed MinesnifferMappingCutter Manual? 0 Play Time 00:06:24 Cumulative 5.1 hours Start 2025.05.09 @ 20:34:12 End 2025.05.09 @ 20:39:57 Sessions 1 Manual Loads 0 Difficulty Rogue Special Mode None Game No. 23 Rogue 23 Adventurer 0 Explorer 0 Win Type - Total 0 Types 0/0/0/0/0/0/0/0/0/0 Lore% 1 Gallery% 11 Achievement% 10 Wizard Run 0 Options --------- Layout 0 ASCII 0 Keyboard 0 Movement Arrows Keybinds 0 Fullscreen 1 Font 24/Smallcaps Map View 56x25 Zoom Use 100% Tactical HUD 0 Map Filters NONE Filters NONE Steam 1 RUN: c2d4104c-5e3f-4b02-97a2-cc0efbd778cb